[Event "SixDays Budapest IM-A 09-2024"]
[Site "Budapest"]
[Date "2024.09.28"]
[Round "7.1"]
[White "Krishna C R G"]
[Black "Bashylina, Luisa"]
[Result "1/2-1/2"]
[ECO "A48"]
[WhiteElo "2425"]
[BlackElo "2124"]
[Annotator "ChessBase"]
[PlyCount "85"]
[EventDate "2024.09.24"]
[EventType "tourn"]
[EventCountry "HUN"]
[SourceTitle "playchess.com"]
[Source "ChessBase"]
[SourceQuality "1"]
[TimeControl "5400+30"]

1. d4 {[%emt 0:00:35]} Nf6 {[%emt 0:00:04]} 2. Nf3 {[%emt 0:00:12]} g6 {[%emt 0:00:10]} 3. c4 {[%emt 0:00:05]} Bg7 {[%emt 0:00:05]} 4. e3 {[%emt 0:00:05]} O-O {[%emt 0:00:04]} 5. Be2 {[%emt 0:00:04]} c5 {[%emt 0:00:03]} 6. d5 {[%emt 0:02:08]} d6 {[%emt 0:00:16]} 7. O-O {[%emt 0:00:12]} e5 {[%emt 0:00:28]} 8. dxe6 {[%emt 0:34:25]} fxe6 {[%emt 0:10:36]} 9. Nc3 {[%emt 0:00:02]} Nc6 {[%emt 0:04:07]} 10. e4 {[%emt 0:05:08]} b6 {[%emt 0:13:55]} 11. Be3 {[%emt 0:06:56]} Bb7 {[%emt 0:00:36]} 12. Qd2 {[%emt 0:01:01]} Qe7 {[%emt 0:04:46]} 13. Rad1 {[%emt 0:00:09]} Rad8 {[%emt 0:00:39]} 14. Bg5 {[%emt 0:06:21]} Qf7 {[%emt 0:04:51]} 15. Bh6 {[%emt 0:09:47]} Qe7 {[%emt 0:14:56]} 16. h3 {[%emt 0:03:17]} Ne5 {[%emt 0:03:31]} 17. Bxg7 {[%emt 0:00:22]} Nxf3+ {[%emt 0:01:20]} 18. Bxf3 {[%emt 0:00:04]} Kxg7 {[%emt 0:01:05]} 19. Rfe1 {[%emt 0:02:52]} Ne8 {[%emt 0:08:01]} 20. Re3 {[%emt 0:00:31]} e5 {[%emt 0:03:00]} 21. Rd3 {[%emt 0:05:00]} Rf6 {[%emt 0:00:24]} 22. b3 {[%emt 0:06:03]} Bc6 {[%emt 0:03:29]} 23. h4 {[%emt 0:06:01]} Qf7 {[%emt 0:11:59]} 24. Ne2 {[%emt 0:01:58]} b5 {[%emt 0:00:57]} 25. Rc1 {[%emt 0:03:13]} Qb7 {[%emt 0:01:24]} 26. Ng3 {[%emt 0:00:59]} Rf4 {[%emt 0:00:25]} 27. h5 {[%emt 0:00:02]} Qe7 {[%emt 0:03:47]} 28. Rd1 {[%emt 0:01:24]} Rb8 {[%emt 0:01:21]} 29. cxb5 {[%emt 0:01:30]} Bxb5 {[%emt 0:00:09]} 30. Re3 {[%emt 0:00:01]} Rb6 {[%emt 0:01:46]} 31. Be2 {[%emt 0:00:30]} Bxe2 {[%emt 0:01:28]} 32. Nxe2 {[%emt 0:00:03]} Rh4 {[%emt 0:00:16]} 33. Nc3 {[%emt 0:02:51]} Nf6 {[%emt 0:01:31]} 34. hxg6 {[%emt 0:00:01]} hxg6 {[%emt 0:00:07]} 35. Nd5 {[%emt 0:00:17]} Nxd5 {[%emt 0:00:32]} 36. Qxd5 {[%emt 0:00:02]} Rh8 {[%emt 0:01:34]} 37. Rdd3 {[%emt 0:01:39]} Qf7 {[%emt 0:01:04]} 38. Qxf7+ {[%emt 0:00:38]} Kxf7 {[%emt 0:00:01]} 39. Rg3 {[%emt 0:00:37]} Rh4 {[%emt 0:00:30]} 40. Rgf3+ {[%emt 0:01:12]} Ke6 {[%emt 0:00:36]} 41. Rg3 {[%emt 0:00:06]} Kf7 {[%emt 0:00:05]} 42. Rgf3+ {[%emt 0:00:28]} Ke6 {[%emt 0:00:04]} 43. Rg3 1/2-1/2

[Event "SixDays Budapest IM-A 09-2024"]
[Site "Budapest"]
[Date "2024.09.28"]
[Round "7.2"]
[White "Boyer, Mahel"]
[Black "Kao, Jamison Edrich"]
[Result "1-0"]
[ECO "E61"]
[WhiteElo "2489"]
[BlackElo "2125"]
[Annotator "TA"]
[PlyCount "57"]
[EventDate "2024.09.24"]
[EventType "tourn"]
[EventCountry "HUN"]
[SourceTitle "playchess.com"]
[Source "ChessBase"]
[SourceQuality "1"]
[TimeControl "5400+30"]

{[%evp 9,57,46,52,-4,2,-36,16,-30,-24,-27,-25,-15,79,81,91,54,213,193,187,212,180,174,168,98,91,34,70,71,129,109,391,437,473,385,601,509,668,675,678,691,677,677,874,865,1404,1324,1115,1252,1437,1437]} 1. d4 {[%emt 0:08:59]} Nf6 {[%emt 0:00:03]} 2. c4 {[%emt 0:00:45]} g6 {[%emt 0:00:03]} 3. Nc3 {[%emt 0:00:12]} Bg7 {[%emt 0:00:02]} 4. Nf3 {[%emt 0:00:26]} O-O {[%emt 0:00:02]} 5. h3 {[%emt 0:00:10]} d6 {[%emt 0:00:49][%cal Oe7e5]} 6. g4 {[%emt 0:00:08] E61: Konings-Indisch: Vroege afwijkingen voor Wit, inclusief Smyslov Systeem.} (6. e4 $14) 6... c5 $11 {[%emt 0:03:44] Beste} 7. d5 {[%emt 0:00:08] Onnauwkeurig} e6 {[%emt 0:02:33] Fout (0.5)} (7... Re8 $15) 8. Bg2 {[%emt 0:00:05] OK. De stelling is in evenwicht.} exd5 {[%emt 0:00:18] OK} 9. cxd5 {[%emt 0:00:04]} Re8 $1 {[%emt 0:07:15] Sterk} 10. Nd2 {[%emt 0:00:21]} h5 {[%emt 0:14:46] blijft gelijk. Fout (0.9)} (10... Nbd7 $11) 11. g5 {[%emt 0:02:52]} Nh7 {[%emt 0:00:04] OK} 12. f4 $146 {[%emt 0:09:13] Onnauwkeurig} ({Predecessor:} 12. Nde4 Bf5 13. h4 b5 14. Ng3 Bg4 15. Nxb5 f6 16. gxf6 Bxf6 17. Qc2 Kg7 18. Bf4 {1-0 Indjic,A (2636)-Perunovic,M (2417) SRB-ch 16th Bajina Basta 2022 (2)}) {Beter is} 12... f6 $2 {[%emt 0:02:32] Fout (1.6)} (12... Bd7 $14) 13. gxf6 $1 $18 {[%emt 0:00:33] Sterk} Nxf6 {[%emt 0:00:56][%cal Bh7f6,Bf6h5,Bh5g3][%mdl 32] [#] EV=27.62. Goes to g3 (dbg))} 14. O-O $1 {[%emt 0:00:56] OK} Nbd7 {[%emt 0:01:50] OK} 15. e4 {[%emt 0:01:55][%cal Oe4e5] En nu zou e5! winnen. OK} h4 {[%emt 0:09:50] [#] OK} {Enige zet:} 16. a4 {[%emt 0:23:24] Fout (0.7)} (16. e5 $1 $18 {[%cal Re5e6]}) 16... Nh5 $16 {[%emt 0:09:57] Beste} {Wit zou moeten proberen} 17. Nf3 {[%emt 0:00:50] Fout (0.6)} (17. Ne2 $16) 17... Ng3 $14 {[%emt 0:05:46][%cal Oc5c4] OK} 18. Re1 {[%emt 0:00:06][%cal Oe4e5] Zwart moet nu e5! voorkomen. Beste (Gemakkelijk)} {Zwart zou moeten spelen} Nf6 {[%emt 0:03:58] Fout (0.6)} (18... Bxc3 19. bxc3 Nf6) 19. e5 {[%emt 0:01:04]} (19. Nxh4 Nfxe4 20. Nxe4 Nxe4 21. Nxg6 Bf5 $11) 19... dxe5 {[%emt 0:00:22][%mdl 8192] Krijgt de voorkeur. Verliest partij (2.8)} (19... Nfh5 $16) 20. fxe5 $18 {[%emt 0:00:14]} Nh7 {[%emt 0:03:18] Voorkomt Bg5.} 21. e6 {[%emt 0:01:42]} ({Zwakker is} 21. Bf4 Bf5 22. d6 Nh5 $18) 21... Qb6 {[%emt 0:09:00] Fout (2.2)} (21... Nf8 $142 22. Bg5 Qb6 23. Nxh4 (23. Bxh4 c4+ 24. Kh2 Nf5 $18) 23... Qxb2) 22. a5 {[%emt 0:05:16] Wit is duidelijk aan het winnen.} Qd6 {[%emt 0:01:49] Onnauwkeurig} 23. Qa4 {[%emt 0:03:59]} Bxe6 {[%emt 0:07:36]} 24. dxe6 {[%emt 0:03:41]} Rxe6 {[%emt 0:01:51]} 25. Bf4 {[%emt 0:01:58]} (25. Qxh4 Rxe1+ 26. Kf2 (26. Nxe1 $2 {slaat de verkeerde figuur.} Bd4+ $19) 26... Bxc3 27. Qc4+ Qe6 28. Qxe6+ Rxe6 $19) 25... Rxe1+ {[%emt 0:01:39]} 26. Rxe1 {[%emt 0:00:07]} Qf6 {[%emt 0:00:10]} 27. Nd5 {[%emt 0:01:04]} Qf7 {[%emt 0:00:21]} 28. Ne7+ {[%emt 0:01:08]} Kh8 {[%emt 0:00:38]} 29. Ne5 {[%emt 0:00:14] Blunder waarde: Wit=0.25 (precies) /Zwart=0.97.  Verliest partij:   	---       	Zwart=1      Fout:        	Wit=2      	Zwart=5      Onnauwkeurig:    	Wit=2      	Zwart=1      OK:         	Wit=3      	Zwart=5      Beste:        	Wit=1      	Zwart=2      Sterk:        	Wit=1      	Zwart=1} 1-0

[Event "SixDays Budapest IM-A 09-2024"]
[Site "Budapest"]
[Date "2024.09.28"]
[Round "7.3"]
[White "Ramsdal, Jens Albert"]
[Black "Wadifa, Ahmed"]
[Result "0-1"]
[ECO "A06"]
[WhiteElo "2328"]
[BlackElo "1988"]
[Annotator "ChessBase"]
[PlyCount "114"]
[EventDate "2024.09.24"]
[EventType "tourn"]
[EventCountry "HUN"]
[SourceTitle "playchess.com"]
[Source "ChessBase"]
[SourceQuality "1"]
[TimeControl "5400+30"]

1. Nf3 {[%emt 0:08:47]} d5 {[%emt 0:00:15]} 2. e3 {[%emt 0:00:16]} Nf6 {[%emt 0:00:15]} 3. c4 {[%emt 0:00:06]} e6 {[%emt 0:00:25]} 4. b3 {[%emt 0:00:15]} c5 {[%emt 0:01:49]} 5. Bb2 {[%emt 0:00:13]} Nc6 {[%emt 0:00:47]} 6. cxd5 {[%emt 0:00:03]} exd5 {[%emt 0:01:59]} 7. Be2 {[%emt 0:00:07]} Bd6 {[%emt 0:01:43]} 8. O-O {[%emt 0:00:07]} O-O {[%emt 0:00:30]} 9. d4 {[%emt 0:00:03]} b6 {[%emt 0:06:07]} 10. Nc3 {[%emt 0:08:28]} a6 {[%emt 0:06:20]} 11. Qd3 {[%emt 0:14:07]} Nb4 {[%emt 0:10:34]} 12. Qb1 {[%emt 0:01:53]} Re8 {[%emt 0:02:31]} 13. a3 {[%emt 0:00:55]} Nc6 {[%emt 0:00:58]} 14. Na4 {[%emt 0:05:23]} Ne4 {[%emt 0:03:57]} 15. dxc5 {[%emt 0:06:39]} bxc5 {[%emt 0:00:27]} 16. Rd1 {[%emt 0:00:29]} Bb7 {[%emt 0:17:34]} 17. Qd3 {[%emt 0:02:44]} Na5 {[%emt 0:05:21]} 18. Rab1 {[%emt 0:08:49]} Bc6 {[%emt 0:03:45]} 19. Qc2 {[%emt 0:04:07]} Rb8 {[%emt 0:09:42]} 20. Nc3 {[%emt 0:01:48]} Nf6 {[%emt 0:02:23]} 21. Ba1 {[%emt 0:04:06]} Rb6 {[%emt 0:02:54]} 22. Na4 {[%emt 0:07:01]} Bxa4 {[%emt 0:04:59]} 23. bxa4 {[%emt 0:00:01]} Rxb1 {[%emt 0:00:46]} 24. Rxb1 {[%emt 0:00:19]} c4 {[%emt 0:02:01]} 25. Rd1 {[%emt 0:03:12]} Ne4 {[%emt 0:03:51]} 26. g3 {[%emt 0:01:05]} Qa8 {[%emt 0:01:10]} 27. Nd4 {[%emt 0:03:59]} Be5 {[%emt 0:03:36]} 28. Bf3 {[%emt 0:05:42]} Bf6 {[%emt 0:01:38]} 29. Kg2 {[%emt 0:02:04]} h6 {[%emt 0:01:57]} 30. h4 {[%emt 0:00:14]} Nc6 {[%emt 0:01:09]} 31. Nf5 {[%emt 0:01:12]} Bxa1 {[%emt 0:01:02]} 32. Rxa1 {[%emt 0:00:01]} Na5 {[%emt 0:01:34]} 33. Rd1 {[%emt 0:05:00]} Nb3 {[%emt 0:00:33]} 34. Qb2 {[%emt 0:00:21]} f6 {[%emt 0:00:16]} 35. Nd4 {[%emt 0:01:11]} Nbc5 {[%emt 0:00:21]} 36. Qb6 {[%emt 0:01:06]} Rb8 {[%emt 0:01:42]} 37. Qc7 {[%emt 0:00:15]} Qb7 {[%emt 0:00:18]} 38. Qc6 {[%emt 0:00:36]} Qxc6 {[%emt 0:00:23]} 39. Nxc6 {[%emt 0:00:02]} Rb2 {[%emt 0:00:20]} 40. Rf1 {[%emt 0:03:12]} Kf7 {[%emt 0:00:42]} 41. Nb4 {[%emt 0:00:08]} Nd3 {[%emt 0:00:59]} 42. Bxe4 {[%emt 0:03:41]} dxe4 {[%emt 0:00:16]} 43. Nxa6 {[%emt 0:01:28]} c3 {[%emt 0:00:34]} 44. Nb4 {[%emt 0:00:01]} c2 {[%emt 0:00:15]} 45. Nxc2 {[%emt 0:00:19]} Rxc2 {[%emt 0:00:04]} 46. a5 {[%emt 0:00:12]} Ra2 {[%emt 0:00:06]} 47. g4 {[%emt 0:00:04]} Rxa3 {[%emt 0:00:39]} 48. Rb1 {[%emt 0:00:05]} Rxa5 49. Rb7+ {[%emt 0:00:02]} Kg6 {[%emt 0:01:12]} 50. Kg3 {[%emt 0:01:42]} Ra2 {[%emt 0:00:18]} 51. h5+ {[%emt 0:00:01]} Kh7 {[%emt 0:00:06]} 52. f3 {[%emt 0:00:13]} exf3 {[%emt 0:00:22]} 53. Kxf3 {[%emt 0:00:02]} Ne5+ {[%emt 0:00:08]} 54. Kf4 {[%emt 0:00:48]} Ra4+ {[%emt 0:00:37]} 55. e4 {[%emt 0:00:06]} Ra3 {[%emt 0:00:08]} 56. Kf5 {[%emt 0:00:13]} Rf3+ {[%emt 0:00:09]} 57. Ke6 {[%emt 0:00:03]} Rf4 {[%emt 0:00:24]} 0-1

[Event "SixDays Budapest IM-A 09-2024"]
[Site "Budapest"]
[Date "2024.09.28"]
[Round "7.4"]
[White "Kwon, Sehyun"]
[Black "Pacher, Milan"]
[Result "1-0"]
[ECO "D10"]
[WhiteElo "2248"]
[BlackElo "2343"]
[Annotator "ChessBase"]
[PlyCount "127"]
[EventDate "2024.09.24"]
[EventType "tourn"]
[EventCountry "HUN"]
[SourceTitle "playchess.com"]
[Source "ChessBase"]
[SourceQuality "1"]
[TimeControl "5400+30"]

1. d4 {[%emt 0:03:09]} d5 {[%emt 0:00:04]} 2. c4 {[%emt 0:00:26]} c6 {[%emt 0:00:04]} 3. cxd5 {[%emt 0:01:01]} cxd5 {[%emt 0:00:02]} 4. Nc3 {[%emt 0:00:08]} Nf6 {[%emt 0:00:02]} 5. Nf3 {[%emt 0:00:04]} Nc6 {[%emt 0:00:03]} 6. Ne5 {[%emt 0:00:04]} e6 {[%emt 0:02:38]} 7. e3 {[%emt 0:00:14]} Nxe5 {[%emt 0:05:34]} 8. dxe5 {[%emt 0:00:06]} Nd7 {[%emt 0:00:05]} 9. f4 {[%emt 0:00:20]} Nc5 {[%emt 0:02:36]} 10. Be2 {[%emt 0:03:22]} Bd7 {[%emt 0:00:48]} 11. O-O {[%emt 0:04:27]} Ne4 {[%emt 0:00:07]} 12. Nxe4 {[%emt 0:15:37]} dxe4 {[%emt 0:02:12]} 13. Qb3 {[%emt 0:06:32]} Qb6 {[%emt 0:00:06]} 14. Qxb6 {[%emt 0:03:11]} axb6 {[%emt 0:00:03]} 15. Bd2 {[%emt 0:01:26]} Bc6 {[%emt 0:01:06]} 16. Bc3 {[%emt 0:09:38]} b5 {[%emt 0:05:08]} 17. Bd4 {[%emt 0:06:39]} b4 {[%emt 0:00:06]} 18. Rfc1 {[%emt 0:03:20]} Be7 {[%emt 0:00:46]} 19. Bc4 {[%emt 0:05:31]} g6 {[%emt 0:03:04]} 20. Bb3 {[%emt 0:06:05]} h5 {[%emt 0:01:18]} 21. Kf2 {[%emt 0:06:28]} h4 {[%emt 0:03:02]} 22. Bc5 {[%emt 0:04:52]} g5 {[%emt 0:06:08]} 23. Bxe7 {[%emt 0:01:17]} Kxe7 {[%emt 0:00:03]} 24. Rc4 {[%emt 0:01:04]} Rhd8 {[%emt 0:06:18]} 25. Rc2 {[%emt 0:06:11]} gxf4 {[%emt 0:03:10]} 26. exf4 {[%emt 0:00:09]} Rd3 {[%emt 0:00:08]} 27. Bc4 {[%emt 0:00:59]} e3+ {[%emt 0:00:05]} 28. Ke2 {[%emt 0:00:35]} Rd4 {[%emt 0:00:04]} 29. g3 {[%emt 0:01:36]} hxg3 {[%emt 0:03:37]} 30. hxg3 {[%emt 0:00:29]} Rh8 {[%emt 0:00:09]} 31. Bd3 {[%emt 0:01:17]} Rhd8 {[%emt 0:00:38]} 32. Bh7 {[%emt 0:01:00]} Kf8 {[%emt 0:02:47]} 33. Kxe3 {[%emt 0:01:00]} b3 {[%emt 0:01:03]} 34. axb3 {[%emt 0:00:48]} Rb4 {[%emt 0:00:57]} 35. Rc3 {[%emt 0:00:29]} Kg7 {[%emt 0:00:05]} 36. Bc2 {[%emt 0:01:44]} Rh8 {[%emt 0:00:05]} 37. Rc4 {[%emt 0:00:34]} Rb6 {[%emt 0:00:05]} 38. Rd4 {[%emt 0:02:14]} Rh3 {[%emt 0:02:38]} 39. Rg1 {[%emt 0:00:08]} Bd5 {[%emt 0:01:33]} 40. Rd3 {[%emt 0:01:37]} Ra6 {[%emt 0:01:03]} 41. Kd4 {[%emt 0:01:07]} Rh2 {[%emt 0:02:18]} 42. Rc3 {[%emt 0:00:14]} Ra2 {[%emt 0:00:25]} 43. Rb1 {[%emt 0:00:22]} Rd2+ {[%emt 0:00:57]} 44. Ke3 {[%emt 0:02:13]} Rg2 {[%emt 0:00:05]} 45. Kd4 {[%emt 0:00:05]} Rd2+ {[%emt 0:01:05]} 46. Bd3 {[%emt 0:00:32]} Bc6 {[%emt 0:02:46]} 47. Rc2 {[%emt 0:00:46]} Rxc2 {[%emt 0:00:25]} 48. Bxc2 {[%emt 0:00:02]} f5 {[%emt 0:00:26]} 49. exf6+ {[%emt 0:00:50]} Kxf6 {[%emt 0:00:02]} 50. g4 {[%emt 0:00:16]} b5 {[%emt 0:01:35]} 51. g5+ {[%emt 0:00:11]} Ke7 {[%emt 0:00:02]} 52. Kc5 {[%emt 0:01:11]} Be8 {[%emt 0:00:02]} 53. Bd3 {[%emt 0:00:30]} Ra8 {[%emt 0:00:05]} 54. Rh1 {[%emt 0:00:26]} Rc8+ {[%emt 0:00:09]} 55. Kd4 {[%emt 0:00:23]} Bc6 {[%emt 0:00:29]} 56. Rh7+ {[%emt 0:00:09]} Kd6 {[%emt 0:00:04]} 57. g6 {[%emt 0:01:16]} Bd5 {[%emt 0:00:47]} 58. b4 {[%emt 0:00:32]} Bc4 {[%emt 0:00:15]} 59. Be4 {[%emt 0:00:54]} Ba2 {[%emt 0:00:57]} 60. Ra7 {[%emt 0:00:19]} Bb3 {[%emt 0:00:26]} 61. g7 {[%emt 0:00:36]} Rc4+ {[%emt 0:00:12]} 62. Ke3 {[%emt 0:00:15]} e5 {[%emt 0:00:04]} 63. g8=Q {[%emt 0:01:27]} exf4+ {[%emt 0:00:05]} 64. Kxf4 {[%emt 0:00:14]} 1-0

[Event "SixDays Budapest IM-A 09-2024"]
[Site "Budapest"]
[Date "2024.09.28"]
[Round "7.5"]
[White "Bashirov, Kemal"]
[Black "Pavan Karthikeya Varma Gunturi"]
[Result "1-0"]
[ECO "E20"]
[WhiteElo "2328"]
[BlackElo "2056"]
[Annotator "ChessBase"]
[PlyCount "83"]
[EventDate "2024.09.24"]
[EventType "tourn"]
[EventCountry "HUN"]
[SourceTitle "playchess.com"]
[Source "ChessBase"]
[SourceQuality "1"]
[TimeControl "5400+30"]

1. d4 {[%emt 0:00:01]} Nf6 {[%emt 0:00:16]} 2. c4 {[%emt 0:00:05]} e6 {[%emt 0:00:09]} 3. Nc3 {[%emt 0:00:04]} Bb4 {[%emt 0:00:11]} 4. f3 {[%emt 0:00:03]} d5 {[%emt 0:06:25]} 5. a3 {[%emt 0:00:09]} Bxc3+ {[%emt 0:01:02]} 6. bxc3 {[%emt 0:00:06]} O-O {[%emt 0:02:46]} 7. cxd5 exd5 {[%emt 0:00:12]} 8. e3 {[%emt 0:03:20]} b6 {[%emt 0:03:49]} 9. Bd3 {[%emt 0:00:25]} Bb7 {[%emt 0:02:03]} 10. Ne2 {[%emt 0:00:57]} Nbd7 {[%emt 0:05:12]} 11. O-O {[%emt 0:00:46]} c5 {[%emt 0:03:07]} 12. Ng3 {[%emt 0:06:11]} Re8 {[%emt 0:06:08]} 13. Re1 {[%emt 0:01:33]} Qc7 {[%emt 0:05:12]} 14. Bb2 {[%emt 0:09:53]} a5 {[%emt 0:13:04]} 15. e4 {[%emt 0:10:08]} dxe4 {[%emt 0:06:08]} 16. fxe4 {[%emt 0:00:10]} c4 {[%emt 0:04:20]} 17. Bc2 {[%emt 0:00:05]} Qc6 {[%emt 0:00:49]} 18. Bc1 {[%emt 0:01:32]} Rad8 {[%emt 0:03:34]} 19. Bg5 {[%emt 0:15:58]} h6 {[%emt 0:03:35]} 20. Bf4 {[%emt 0:00:51]} b5 {[%emt 0:03:27]} 21. Qf3 {[%emt 0:01:46]} b4 {[%emt 0:07:44]} 22. axb4 {[%emt 0:08:59]} axb4 {[%emt 0:00:07]} 23. cxb4 {[%emt 0:03:08]} Qb6 {[%emt 0:00:24]} 24. Be3 {[%emt 0:00:19]} Qxb4 {[%emt 0:05:50]} 25. Bf2 {[%emt 0:08:09]} Qd2 {[%emt 0:03:10]} 26. Re2 {[%emt 0:02:28]} Qg5 {[%emt 0:00:45]} 27. Nf5 {[%emt 0:00:33]} Nf8 {[%emt 0:03:32]} 28. Rb1 {[%emt 0:06:22]} Ba8 {[%emt 0:00:49]} 29. Bh4 {[%emt 0:01:36]} Qg6 {[%emt 0:01:20]} 30. Rbe1 {[%emt 0:06:49]} Bc6 {[%emt 0:01:50]} 31. d5 {[%emt 0:01:14]} Bb7 {[%emt 0:01:02]} 32. e5 {[%emt 0:02:19]} Bxd5 {[%emt 0:00:39]} 33. Qf1 {[%emt 0:00:04]} Qh5 {[%emt 0:01:55]} 34. exf6 {[%emt 0:01:36]} Rxe2 {[%emt 0:00:18]} 35. Qxe2 {[%emt 0:00:26]} Qxe2 {[%emt 0:00:22]} 36. Rxe2 {[%emt 0:00:02]} g6 {[%emt 0:00:14]} 37. Ne7+ {[%emt 0:00:42]} Kh7 {[%emt 0:00:06]} 38. Rd2 {[%emt 0:00:06]} c3 {[%emt 0:00:17]} 39. Rxd5 {[%emt 0:00:22]} Rb8 {[%emt 0:00:07]} 40. Rc5 {[%emt 0:00:12]} Ne6 {[%emt 0:00:05]} 41. Rxc3 {[%emt 0:00:20]} Nd4 {[%emt 0:00:14]} 42. Bd3 {[%emt 0:00:18]} 1-0

[Event "SixDays Budapest IM-A 09-2024"]
[Site "Budapest"]
[Date "2024.09.28"]
[Round "8.1"]
[White "Bashylina, Luisa"]
[Black "Pavan Karthikeya Varma Gunturi"]
[Result "0-1"]
[ECO "E28"]
[WhiteElo "2124"]
[BlackElo "2056"]
[Annotator "ChessBase"]
[PlyCount "114"]
[EventDate "2024.09.24"]
[EventType "tourn"]
[EventCountry "HUN"]
[SourceTitle "playchess.com"]
[Source "ChessBase"]
[SourceQuality "1"]
[TimeControl "5400+30"]

1. d4 {[%emt 0:00:03]} Nf6 {[%emt 0:00:07]} 2. c4 {[%emt 0:00:02]} e6 {[%emt 0:00:04]} 3. Nc3 {[%emt 0:00:03]} Bb4 {[%emt 0:00:05]} 4. a3 {[%emt 0:00:04]} Bxc3+ {[%emt 0:00:34]} 5. bxc3 O-O {[%emt 0:01:58]} 6. e3 {[%emt 0:00:29]} b6 {[%emt 0:01:50]} 7. Bd3 {[%emt 0:00:39]} Bb7 {[%emt 0:01:02]} 8. f3 {[%emt 0:00:36]} d6 {[%emt 0:07:13]} 9. Ne2 {[%emt 0:00:39]} e5 {[%emt 0:02:35]} 10. e4 {[%emt 0:00:43]} Nbd7 {[%emt 0:04:24]} 11. O-O {[%emt 0:02:02]} Re8 {[%emt 0:03:06]} 12. Ng3 {[%emt 0:04:13]} Nf8 {[%emt 0:03:52]} 13. Qc2 {[%emt 0:07:05]} c5 {[%emt 0:06:21]} 14. Be3 {[%emt 0:13:06]} Ng6 {[%emt 0:04:16]} 15. Rae1 {[%emt 0:01:08]} Rc8 {[%emt 0:03:41]} 16. d5 {[%emt 0:09:15]} Rc7 {[%emt 0:01:19]} 17. Qd2 {[%emt 0:05:33]} Bc8 {[%emt 0:01:53]} 18. Nf5 {[%emt 0:01:33]} Bxf5 {[%emt 0:13:50]} 19. exf5 {[%emt 0:00:15]} Nf8 {[%emt 0:01:23]} 20. Bg5 {[%emt 0:05:18]} h6 {[%emt 0:01:28]} 21. Bh4 {[%emt 0:01:07]} N8h7 {[%emt 0:01:01]} 22. g4 {[%emt 0:04:39]} Qd7 {[%emt 0:05:52]} 23. Kh1 {[%emt 0:08:15]} b5 {[%emt 0:08:36]} 24. Rg1 {[%emt 0:08:10]} bxc4 {[%emt 0:05:16]} 25. Bxc4 {[%emt 0:02:18]} Qa4 {[%emt 0:02:57]} 26. Qd3 {[%emt 0:05:19]} Rb8 {[%emt 0:01:21]} 27. g5 {[%emt 0:01:18]} hxg5 {[%emt 0:00:57]} 28. Bxg5 {[%emt 0:00:08]} Nxg5 {[%emt 0:01:00]} 29. Rxg5 {[%emt 0:00:06]} Rb2 {[%emt 0:00:55]} 30. Reg1 {[%emt 0:03:49]} Qc2 {[%emt 0:02:20]} 31. Rxg7+ {[%emt 0:05:12]} Kf8 {[%emt 0:00:15]} 32. R7g2 {[%emt 0:02:18]} Qxd3 {[%emt 0:00:10]} 33. Bxd3 {[%emt 0:00:02]} Rb3 {[%emt 0:00:11]} 34. Rc2 {[%emt 0:05:08]} Nxd5 {[%emt 0:03:41]} 35. Rgc1 {[%emt 0:01:36]} Rxa3 {[%emt 0:00:21]} 36. Be4 {[%emt 0:00:09]} Nf6 {[%emt 0:01:08]} 37. Rd2 {[%emt 0:00:36]} Rd7 {[%emt 0:00:47]} 38. Bc6 {[%emt 0:00:31]} Rd8 {[%emt 0:00:36]} 39. c4 {[%emt 0:00:04]} Ra6 {[%emt 0:00:39]} 40. Be4 {[%emt 0:01:28]} Rb8 {[%emt 0:00:33]} 41. Rcd1 {[%emt 0:00:37]} Ke7 {[%emt 0:00:12]} 42. Rg2 {[%emt 0:01:33]} Rb4 {[%emt 0:01:01]} 43. Bd3 {[%emt 0:00:03]} Nh5 {[%emt 0:01:05]} 44. Rgd2 {[%emt 0:00:34]} Nf4 {[%emt 0:00:38]} 45. Bf1 {[%emt 0:00:09]} Rb3 {[%emt 0:00:31]} 46. Bg2 {[%emt 0:01:26]} Rc3 {[%emt 0:00:42]} 47. h4 {[%emt 0:00:32]} Nxg2 {[%emt 0:00:21]} 48. Kxg2 {[%emt 0:00:37]} Rxc4 {[%emt 0:00:29]} 49. Kg3 {[%emt 0:00:08]} Rf4 {[%emt 0:02:08]} 50. h5 {[%emt 0:00:30]} Rxf5 {[%emt 0:01:00]} 51. Rh2 {[%emt 0:00:32]} Kf8 {[%emt 0:00:17]} 52. h6 {[%emt 0:01:27]} Rg5+ {[%emt 0:00:38]} 53. Kh4 {[%emt 0:00:35]} Rg6 {[%emt 0:00:15]} 54. Kh5 {[%emt 0:02:23]} d5 {[%emt 0:00:11]} 55. Rc2 {[%emt 0:00:11]} Rxh6+ {[%emt 0:00:05]} 56. Kg5 {[%emt 0:00:02]} Rag6+ {[%emt 0:00:07]} 57. Kf5 {[%emt 0:00:20]} Rh5# {[%emt 0:00:07]} 0-1

[Event "SixDays Budapest IM-A 09-2024"]
[Site "Budapest"]
[Date "2024.09.28"]
[Round "8.2"]
[White "Pacher, Milan"]
[Black "Bashirov, Kemal"]
[Result "1-0"]
[ECO "B51"]
[WhiteElo "2343"]
[BlackElo "2328"]
[Annotator "ChessBase"]
[PlyCount "77"]
[EventDate "2024.09.24"]
[EventType "tourn"]
[EventCountry "HUN"]
[SourceTitle "playchess.com"]
[Source "ChessBase"]
[SourceQuality "1"]
[TimeControl "5400+30"]

1. e4 {[%emt 0:01:13]} c5 {[%emt 0:00:11]} 2. Nf3 {[%emt 0:00:05]} d6 {[%emt 0:00:03]} 3. Bb5+ {[%emt 0:00:06]} Nd7 {[%emt 0:00:09]} 4. d4 {[%emt 0:00:07]} cxd4 {[%emt 0:00:27]} 5. Qxd4 {[%emt 0:00:03]} a6 {[%emt 0:00:16]} 6. Bxd7+ {[%emt 0:00:05]} Bxd7 {[%emt 0:00:03]} 7. Nc3 {[%emt 0:00:06]} e5 {[%emt 0:08:59]} 8. Qd3 {[%emt 0:00:03]} h6 {[%emt 0:00:29]} 9. Nd2 {[%emt 0:00:58]} Rc8 {[%emt 0:09:06]} 10. Nc4 {[%emt 0:00:19]} Be6 {[%emt 0:01:05]} 11. Ne3 {[%emt 0:00:06]} Nf6 {[%emt 0:00:04]} 12. O-O {[%emt 0:00:50]} Be7 {[%emt 0:00:32]} 13. Ncd5 {[%emt 0:00:58]} O-O {[%emt 0:02:02]} 14. c4 {[%emt 0:06:44]} Nxd5 {[%emt 0:02:41]} 15. Nxd5 {[%emt 0:00:04]} f5 {[%emt 0:00:59]} 16. b3 {[%emt 0:03:37]} fxe4 {[%emt 0:07:53]} 17. Qxe4 {[%emt 0:00:03]} Bf5 {[%emt 0:01:35]} 18. Qe2 {[%emt 0:00:03]} b5 {[%emt 0:09:10]} 19. cxb5 {[%emt 0:00:52]} Rc2 {[%emt 0:00:29]} 20. Qd1 {[%emt 0:03:37]} Bg5 {[%emt 0:06:41]} 21. Bxg5 {[%emt 0:09:43]} Qxg5 {[%emt 0:00:07]} 22. Ne3 {[%emt 0:00:05]} Be4 {[%emt 0:00:19]} 23. bxa6 {[%emt 0:05:36]} h5 {[%emt 0:10:03]} 24. Qxd6 {[%emt 0:03:11]} Rf6 {[%emt 0:01:43]} 25. Qb4 {[%emt 0:03:40]} Bf3 {[%emt 0:12:30]} 26. a7 {[%emt 0:08:26]} Rc8 {[%emt 0:15:33]} 27. h4 {[%emt 0:03:11]} Qg6 {[%emt 0:00:34]} 28. Rac1 {[%emt 0:01:51]} Rcf8 {[%emt 0:00:36]} 29. Qb8 {[%emt 0:01:23]} Ba8 {[%emt 0:05:20]} 30. Qxe5 {[%emt 0:00:57]} Re6 {[%emt 0:02:37]} 31. Qg5 {[%emt 0:02:13]} Qf7 {[%emt 0:00:22]} 32. Nd5 {[%emt 0:01:54]} Qxa7 {[%emt 0:01:33]} 33. Rc7 {[%emt 0:00:44]} Qd4 {[%emt 0:00:02]} 34. Ne7+ {[%emt 0:00:37]} Kh7 {[%emt 0:00:06]} 35. Nf5 {[%emt 0:00:37]} Rxf5 {[%emt 0:00:52]} 36. Qxf5+ {[%emt 0:00:04]} Rg6 {[%emt 0:00:02]} 37. Qxh5+ {[%emt 0:00:06]} Rh6 {[%emt 0:00:01]} 38. Qf5+ {[%emt 0:00:09]} Rg6 {[%emt 0:00:03]} 39. h5 {[%emt 0:00:07]} 1-0